[Event "Titled Tuesday Blitz May 4 2021"]
[White "Mayeregger, Arnold"]
[Black "Gabriel, Robert"]
[WhiteFideId "3705226"]
[BlackFideId "4606477"]
[WhiteElo "1567"]
[BlackElo "2203"]
[Result "1-0"]
[Round "06"]
[TimeControl "180+1"]
[Date "2021.05.04"]
[WhiteClock "0:02:07"]
[BlackClock "0:00:01"]

1. e4 {[%clk 0:03:00]}  c5 {[%clk 0:02:58]} 2. d4 {[%clk 0:03:00]}  cxd4 {[%clk 0:02:56]} 3. c3 {[%clk 0:03:01]}  g6 {[%clk 0:02:54]} 4. Nf3 {[%clk 0:03:01]}  Nc6 {[%clk 0:02:50]} 5. Bc4 {[%clk 0:03:01]}  dxc3 {[%clk 0:02:17]} 6. Nxc3 {[%clk 0:03:02]}  Bg7 {[%clk 0:02:15]} 7. O-O {[%clk 0:03:02]}  Nf6 {[%clk 0:01:49]} 8. Qe2 {[%clk 0:03:02]}  O-O {[%clk 0:01:45]} 9. Rd1 {[%clk 0:03:03]}  d6 {[%clk 0:01:30]} 10. e5 {[%clk 0:03:02]}  Ng4 {[%clk 0:01:29]} 11. exd6 {[%clk 0:02:59]}  exd6 {[%clk 0:01:28]} 12. Bg5 {[%clk 0:02:56]}  Qa5 {[%clk 0:01:18]} 13. Rd5 {[%clk 0:02:29]}  Qb6 {[%clk 0:01:02]} 14. Rxd6 {[%clk 0:02:26]}  Nge5 {[%clk 0:00:54]} 15. Nxe5 {[%clk 0:02:25]}  Bxe5 {[%clk 0:00:53]} 16. Rxc6 {[%clk 0:02:22]}  Qxc6 {[%clk 0:00:43]} 17. Qxe5 {[%clk 0:02:19]}  Qxc4 {[%clk 0:00:40]} 18. Nd5 {[%clk 0:02:16]}  f6 {[%clk 0:00:26]} 19. Bxf6 {[%clk 0:02:07]}  Rxf6 {[%clk 0:00:10]} 20. Nxf6+ {[%clk 0:02:08]}  Kf7 {[%clk 0:00:08]} 21. Ne4 {[%clk 0:02:07]}  Qa6 {[%clk 0:00:01]} 22. Nd6+ {[%clk 0:02:07]} 1-0


[Site "https://www.chess.com"]

[Event "Titled Tuesday Blitz May 4 2021"]
[White "Mikhalevski, Victor"]
[Black "Karttunen, Mika"]
[WhiteFideId "2801914"]
[BlackFideId "502081"]
[WhiteElo "2567"]
[BlackElo "2343"]
[Result "1-0"]
[Round "06"]
[TimeControl "180+1"]
[Date "2021.05.04"]
[WhiteClock "0:00:23"]
[BlackClock "0:00:06"]

1. d4 {[%clk 0:03:00]}  Nf6 {[%clk 0:02:57]} 2. c4 {[%clk 0:03:00]}  e6 {[%clk 0:02:51]} 3. g3 {[%clk 0:03:00]}  c5 {[%clk 0:02:50]} 4. d5 {[%clk 0:02:58]}  exd5 {[%clk 0:02:50]} 5. cxd5 {[%clk 0:02:59]}  d6 {[%clk 0:02:51]} 6. Nc3 {[%clk 0:02:59]}  g6 {[%clk 0:02:50]} 7. Bg2 {[%clk 0:02:59]}  Bg7 {[%clk 0:02:50]} 8. Nf3 {[%clk 0:03:00]}  O-O {[%clk 0:02:50]} 9. O-O {[%clk 0:03:00]}  a5 {[%clk 0:02:50]} 10. a4 {[%clk 0:02:57]}  Na6 {[%clk 0:02:42]} 11. Bf4 {[%clk 0:02:57]}  Nc7 {[%clk 0:02:42]} 12. e4 {[%clk 0:02:53]}  Nh5 {[%clk 0:02:33]} 13. Bg5 {[%clk 0:02:53]}  f6 {[%clk 0:02:19]} 14. Be3 {[%clk 0:02:49]}  f5 {[%clk 0:02:18]} 15. exf5 {[%clk 0:02:47]}  Bxf5 {[%clk 0:02:16]} 16. Ng5 {[%clk 0:02:40]}  Qd7 {[%clk 0:02:01]} 17. Re1 {[%clk 0:02:21]}  h6 {[%clk 0:01:39]} 18. Nge4 {[%clk 0:02:20]}  Nf6 {[%clk 0:01:39]} 19. Nxf6+ {[%clk 0:02:12]}  Rxf6 {[%clk 0:01:38]} 20. Qd2 {[%clk 0:02:10]}  g5 {[%clk 0:01:36]} 21. f4 {[%clk 0:02:05]}  g4 {[%clk 0:01:32]} 22. Bf2 {[%clk 0:01:57]}  Rf7 {[%clk 0:01:26]} 23. Bf1 {[%clk 0:01:50]}  Re8 {[%clk 0:01:15]} 24. Rxe8+ {[%clk 0:01:49]}  Qxe8 {[%clk 0:01:14]} 25. Nb5 {[%clk 0:01:48]}  Nxb5 {[%clk 0:01:12]} 26. Bxb5 {[%clk 0:01:47]}  Qd8 {[%clk 0:01:11]} 27. Bd3 {[%clk 0:01:21]}  Bxd3 {[%clk 0:00:50]} 28. Qxd3 {[%clk 0:01:21]}  Qf6 {[%clk 0:00:49]} 29. Rb1 {[%clk 0:01:09]}  Re7 {[%clk 0:00:42]} 30. b3 {[%clk 0:01:08]}  Qc3 {[%clk 0:00:36]} 31. Qd1 {[%clk 0:01:03]}  h5 {[%clk 0:00:30]} 32. Rc1 {[%clk 0:01:00]}  Qb2 {[%clk 0:00:26]} 33. Kf1 {[%clk 0:00:49]}  b6 {[%clk 0:00:23]} 34. Qc2 {[%clk 0:00:46]}  Qa3 {[%clk 0:00:19]} 35. Rd1 {[%clk 0:00:41]}  Qb4 {[%clk 0:00:19]} 36. Qc4 {[%clk 0:00:39]}  Qa3 {[%clk 0:00:18]} 37. Qd3 {[%clk 0:00:34]}  Qb2 {[%clk 0:00:17]} 38. Rd2 {[%clk 0:00:32]}  Qc1+ {[%clk 0:00:17]} 39. Kg2 {[%clk 0:00:32]}  Qa1 {[%clk 0:00:16]} 40. Re2 {[%clk 0:00:31]}  Rxe2 {[%clk 0:00:15]} 41. Qxe2 {[%clk 0:00:31]}  Qf6 {[%clk 0:00:15]} 42. Qe8+ {[%clk 0:00:30]}  Bf8 {[%clk 0:00:13]} 43. Qxh5 {[%clk 0:00:30]}  Qg7 {[%clk 0:00:14]} 44. Qf5 {[%clk 0:00:30]}  Be7 {[%clk 0:00:13]} 45. Qe6+ {[%clk 0:00:29]}  Kf8 {[%clk 0:00:14]} 46. Qd7 {[%clk 0:00:26]}  Qb2 {[%clk 0:00:13]} 47. Qxg4 {[%clk 0:00:23]}  Qxb3 {[%clk 0:00:13]} 48. Qf5+ {[%clk 0:00:23]}  Ke8 {[%clk 0:00:13]} 49. g4 {[%clk 0:00:23]}  c4 {[%clk 0:00:13]} 50. g5 {[%clk 0:00:23]}  c3 {[%clk 0:00:14]} 51. g6 {[%clk 0:00:24]}  c2 {[%clk 0:00:06]} 52. g7 {[%clk 0:00:24]}  Kd8 {[%clk 0:00:06]} 53. g8=Q+ {[%clk 0:00:23]} 1-0


[Site "https://www.chess.com"]

[Event "Titled Tuesday Blitz May 4 2021"]
[White "Moore, Nicholas"]
[Black "Ozkan, Ervin"]
[WhiteFideId "4303709"]
[BlackFideId "6306004"]
[WhiteElo "2367"]
[BlackElo "2226"]
[Result "0-1"]
[Round "06"]
[TimeControl "180+1"]
[Date "2021.05.04"]
[WhiteClock "0:00:38"]
[BlackClock "0:01:27"]

1. d4 {[%clk 0:03:00]}  d5 {[%clk 0:02:59]} 2. c4 {[%clk 0:03:01]}  c6 {[%clk 0:03:00]} 3. Nf3 {[%clk 0:03:00]}  Nf6 {[%clk 0:03:00]} 4. e3 {[%clk 0:03:00]}  Bg4 {[%clk 0:02:54]} 5. cxd5 {[%clk 0:02:58]}  cxd5 {[%clk 0:02:52]} 6. h3 {[%clk 0:02:57]}  Bxf3 {[%clk 0:02:52]} 7. Qxf3 {[%clk 0:02:57]}  e6 {[%clk 0:02:52]} 8. Nc3 {[%clk 0:02:53]}  Nc6 {[%clk 0:02:51]} 9. Bd3 {[%clk 0:02:52]}  Bd6 {[%clk 0:02:47]} 10. O-O {[%clk 0:02:50]}  O-O {[%clk 0:02:47]} 11. a3 {[%clk 0:02:38]}  Rc8 {[%clk 0:02:46]} 12. Qd1 {[%clk 0:02:33]}  Na5 {[%clk 0:02:29]} 13. f4 {[%clk 0:02:11]}  Qb6 {[%clk 0:02:14]} 14. Na4 {[%clk 0:01:55]}  Qb3 {[%clk 0:02:08]} 15. Bd2 {[%clk 0:01:33]}  Qxd3 {[%clk 0:02:01]} 16. Bxa5 {[%clk 0:01:31]}  Qxe3+ {[%clk 0:02:01]} 17. Kh1 {[%clk 0:01:31]}  Ne4 {[%clk 0:02:00]} 18. Qf3 {[%clk 0:01:20]}  Ng3+ {[%clk 0:01:57]} 19. Kh2 {[%clk 0:01:11]}  Nxf1+ {[%clk 0:01:57]} 20. Rxf1 {[%clk 0:01:12]}  Qxf3 {[%clk 0:01:52]} 21. Rxf3 {[%clk 0:01:13]}  Rc4 {[%clk 0:01:52]} 22. Nc5 {[%clk 0:01:08]}  b6 {[%clk 0:01:48]} 23. Nb7 {[%clk 0:01:02]}  Bc7 {[%clk 0:01:42]} 24. Bb4 {[%clk 0:01:00]}  Rxb4 {[%clk 0:01:41]} 25. axb4 {[%clk 0:00:59]}  Rb8 {[%clk 0:01:41]} 26. Nc5 {[%clk 0:00:50]}  bxc5 {[%clk 0:01:41]} 27. bxc5 {[%clk 0:00:49]}  Rxb2 {[%clk 0:01:42]} 28. Kg3 {[%clk 0:00:49]}  g5 {[%clk 0:01:42]} 29. Ra3 {[%clk 0:00:47]}  gxf4+ {[%clk 0:01:41]} 30. Kf3 {[%clk 0:00:46]}  a5 {[%clk 0:01:41]} 31. h4 {[%clk 0:00:41]}  Rb4 {[%clk 0:01:38]} 32. h5 {[%clk 0:00:39]}  Kg7 {[%clk 0:01:37]} 33. Kg4 {[%clk 0:00:38]}  Rxd4 {[%clk 0:01:32]} 34. Rb3 {[%clk 0:00:39]}  Rb4 {[%clk 0:01:32]} 35. Rc3 {[%clk 0:00:38]}  a4 {[%clk 0:01:28]} 36. Rd3 {[%clk 0:00:38]}  Rb3 {[%clk 0:01:27]} 37. Rd4 {[%clk 0:00:39]}  Rg3+ {[%clk 0:01:26]} 38. Kh4 {[%clk 0:00:38]}  Bd8# {[%clk 0:01:27]} 0-1


[Site "https://www.chess.com"]

[Event "Titled Tuesday Blitz May 4 2021"]
[White "Myers, Dominique"]
[Black "San, Thit Lwin"]
[WhiteFideId "2041715"]
[BlackFideId "13001272"]
[WhiteElo "1986"]
[BlackElo "2232"]
[Result "0-1"]
[Round "06"]
[TimeControl "180+1"]
[Date "2021.05.04"]
[WhiteClock "0:00:07"]
[BlackClock "0:00:18"]

1. e4 {[%clk 0:02:47]}  Nf6 {[%clk 0:03:00]} 2. e5 {[%clk 0:02:21]}  Nd5 {[%clk 0:03:00]} 3. c4 {[%clk 0:02:22]}  Nb6 {[%clk 0:02:59]} 4. d4 {[%clk 0:02:23]}  d6 {[%clk 0:03:00]} 5. f4 {[%clk 0:02:24]}  dxe5 {[%clk 0:02:59]} 6. fxe5 {[%clk 0:02:25]}  Nc6 {[%clk 0:03:00]} 7. Be3 {[%clk 0:02:25]}  Bf5 {[%clk 0:03:00]} 8. Be2 {[%clk 0:02:23]}  e6 {[%clk 0:02:59]} 9. Nf3 {[%clk 0:02:23]}  Be7 {[%clk 0:02:56]} 10. O-O {[%clk 0:02:03]}  f6 {[%clk 0:02:54]} 11. exf6 {[%clk 0:02:02]}  Bxf6 {[%clk 0:02:54]} 12. Nc3 {[%clk 0:02:03]}  O-O {[%clk 0:02:51]} 13. Qd2 {[%clk 0:02:02]}  Qd7 {[%clk 0:02:50]} 14. Rad1 {[%clk 0:01:58]}  Rad8 {[%clk 0:02:49]} 15. b3 {[%clk 0:01:45]}  h6 {[%clk 0:02:46]} 16. Qc1 {[%clk 0:01:39]}  Qc8 {[%clk 0:02:33]} 17. a3 {[%clk 0:01:32]}  Kh8 {[%clk 0:02:26]} 18. h3 {[%clk 0:01:21]}  a6 {[%clk 0:02:24]} 19. b4 {[%clk 0:00:58]}  Bh7 {[%clk 0:02:09]} 20. Rfe1 {[%clk 0:00:48]}  Ne7 {[%clk 0:01:54]} 21. Bf2 {[%clk 0:00:33]}  Nf5 {[%clk 0:01:39]} 22. Bf1 {[%clk 0:00:33]}  Bg8 {[%clk 0:01:22]} 23. Ne4 {[%clk 0:00:32]}  Be7 {[%clk 0:01:18]} 24. g4 {[%clk 0:00:28]}  Nd6 {[%clk 0:01:15]} 25. Nfd2 {[%clk 0:00:25]}  Ne8 {[%clk 0:01:06]} 26. Nc5 {[%clk 0:00:24]}  Nf6 {[%clk 0:01:03]} 27. Bg2 {[%clk 0:00:24]}  c6 {[%clk 0:01:00]} 28. Nf3 {[%clk 0:00:23]}  Nh7 {[%clk 0:00:53]} 29. Ne5 {[%clk 0:00:23]}  Bf7 {[%clk 0:00:49]} 30. Nxf7+ {[%clk 0:00:21]}  Rxf7 {[%clk 0:00:49]} 31. Nxe6 {[%clk 0:00:22]}  Re8 {[%clk 0:00:47]} 32. d5 {[%clk 0:00:20]}  Bf6 {[%clk 0:00:39]} 33. Bxb6 {[%clk 0:00:20]}  Ng5 {[%clk 0:00:30]} 34. Qd2 {[%clk 0:00:14]}  cxd5 {[%clk 0:00:24]} 35. cxd5 {[%clk 0:00:12]}  Bc3 {[%clk 0:00:23]} 36. Nxg5 {[%clk 0:00:10]}  Bxd2 {[%clk 0:00:21]} 37. Nxf7+ {[%clk 0:00:10]}  Kg8 {[%clk 0:00:21]} 38. Rxe8+ {[%clk 0:00:07]}  Qxe8 {[%clk 0:00:20]} 39. Rxd2 {[%clk 0:00:08]}  Qe1+ {[%clk 0:00:19]} 40. Kh2 {[%clk 0:00:08]}  Qxd2 {[%clk 0:00:19]} 41. d6 {[%clk 0:00:06]}  Kxf7 {[%clk 0:00:18]} 42. Bc5 {[%clk 0:00:05]}  b6 {[%clk 0:00:16]} 43. Bxb6 {[%clk 0:00:04]}  Qxd6+ {[%clk 0:00:16]} 44. Kg1 {[%clk 0:00:04]}  Qxb6+ {[%clk 0:00:17]} 45. Kf1 {[%clk 0:00:03]}  a5 {[%clk 0:00:17]} 46. Bf3 {[%clk 0:00:04]}  axb4 {[%clk 0:00:17]} 47. axb4 {[%clk 0:00:05]}  Qxb4 {[%clk 0:00:17]} 48. Kg2 {[%clk 0:00:06]}  Qc3 {[%clk 0:00:17]} 49. Kg3 {[%clk 0:00:07]}  Kf6 {[%clk 0:00:17]} 50. Kf4 {[%clk 0:00:07]}  Qe5# {[%clk 0:00:18]} 0-1


[Site "https://www.chess.com"]

[Event "Titled Tuesday Blitz May 4 2021"]
[White "Nadeev, Sergey"]
[Black "Coelho, Ramyres Santana"]
[WhiteFideId "4180038"]
[BlackFideId "2120690"]
[WhiteElo "2369"]
[BlackElo "1888"]
[Result "1/2-1/2"]
[Round "06"]
[TimeControl "180+1"]
[Date "2021.05.04"]
[WhiteClock "0:02:44"]
[BlackClock "0:02:33"]

1. d4 {[%clk 0:03:00]}  Nf6 {[%clk 0:02:59]} 2. Bf4 {[%clk 0:03:00]}  Nh5 {[%clk 0:02:57]} 3. Bg5 {[%clk 0:02:57]}  h6 {[%clk 0:02:57]} 4. Bc1 {[%clk 0:02:55]}  g5 {[%clk 0:02:54]} 5. e4 {[%clk 0:02:54]}  Nf4 {[%clk 0:02:53]} 6. g3 {[%clk 0:02:53]}  Ng6 {[%clk 0:02:52]} 7. Bg2 {[%clk 0:02:49]}  Bg7 {[%clk 0:02:52]} 8. Ne2 {[%clk 0:02:50]}  c5 {[%clk 0:02:53]} 9. dxc5 {[%clk 0:02:48]}  Qa5+ {[%clk 0:02:52]} 10. Nbc3 {[%clk 0:02:48]}  Qxc5 {[%clk 0:02:52]} 11. Be3 {[%clk 0:02:49]}  Qb4 {[%clk 0:02:51]} 12. Qd2 {[%clk 0:02:49]}  Qxb2 {[%clk 0:02:49]} 13. Rb1 {[%clk 0:02:49]}  Qa3 {[%clk 0:02:46]} 14. O-O {[%clk 0:02:48]}  a6 {[%clk 0:02:33]} 15. Nd5 {[%clk 0:02:44]} 1/2-1/2


[Site "https://www.chess.com"]

[Event "Titled Tuesday Blitz May 4 2021"]
[White "Navalgund, Niranjan"]
[Black "Madaminov, Mukhiddin"]
[WhiteFideId "5030854"]
[BlackFideId "14210703"]
[WhiteElo "2290"]
[BlackElo "1747"]
[Result "0-1"]
[Round "06"]
[TimeControl "180+1"]
[Date "2021.05.04"]
[WhiteClock "0:01:29"]
[BlackClock "0:00:20"]

1. e4 {[%clk 0:03:00]}  e6 {[%clk 0:02:59]} 2. d3 {[%clk 0:02:55]}  d5 {[%clk 0:02:58]} 3. Nd2 {[%clk 0:02:56]}  Nf6 {[%clk 0:02:58]} 4. Ngf3 {[%clk 0:02:56]}  Nc6 {[%clk 0:02:57]} 5. g3 {[%clk 0:02:57]}  dxe4 {[%clk 0:02:57]} 6. dxe4 {[%clk 0:02:57]}  e5 {[%clk 0:02:58]} 7. Bg2 {[%clk 0:02:57]}  Bc5 {[%clk 0:02:58]} 8. O-O {[%clk 0:02:58]}  O-O {[%clk 0:02:58]} 9. h3 {[%clk 0:02:56]}  a5 {[%clk 0:02:57]} 10. Kh2 {[%clk 0:02:53]}  b6 {[%clk 0:02:56]} 11. Nh4 {[%clk 0:02:54]}  Ba6 {[%clk 0:02:54]} 12. c4 {[%clk 0:02:54]}  Nd4 {[%clk 0:02:47]} 13. b3 {[%clk 0:02:50]}  Re8 {[%clk 0:02:39]} 14. f4 {[%clk 0:02:49]}  exf4 {[%clk 0:02:36]} 15. gxf4 {[%clk 0:02:45]}  Nxe4 {[%clk 0:02:12]} 16. Nxe4 {[%clk 0:02:45]}  Qxh4 {[%clk 0:01:17]} 17. Qg4 {[%clk 0:02:38]}  Qxg4 {[%clk 0:01:15]} 18. hxg4 {[%clk 0:02:39]}  Bb7 {[%clk 0:01:06]} 19. Nxc5 {[%clk 0:02:22]}  Bxg2 {[%clk 0:01:04]} 20. Kxg2 {[%clk 0:02:22]}  bxc5 {[%clk 0:01:05]} 21. Rf2 {[%clk 0:02:23]}  a4 {[%clk 0:01:04]} 22. Rb1 {[%clk 0:02:18]}  axb3 {[%clk 0:01:03]} 23. axb3 {[%clk 0:02:19]}  f5 {[%clk 0:01:00]} 24. gxf5 {[%clk 0:02:16]}  Nxf5 {[%clk 0:01:00]} 25. b4 {[%clk 0:02:16]}  cxb4 {[%clk 0:00:59]} 26. Rxb4 {[%clk 0:02:17]}  Reb8 {[%clk 0:00:59]} 27. Rfb2 {[%clk 0:02:15]}  Rxb4 {[%clk 0:00:58]} 28. Rxb4 {[%clk 0:02:16]}  Ra1 {[%clk 0:00:55]} 29. Bb2 {[%clk 0:02:16]}  Rb1 {[%clk 0:00:52]} 30. Kf3 {[%clk 0:02:09]}  Kf7 {[%clk 0:00:49]} 31. Ke4 {[%clk 0:02:08]}  Ke6 {[%clk 0:00:47]} 32. c5 {[%clk 0:02:05]}  h5 {[%clk 0:00:45]} 33. Rb8 {[%clk 0:02:04]}  g6 {[%clk 0:00:39]} 34. Re8+ {[%clk 0:01:54]}  Kf7 {[%clk 0:00:30]} 35. Rb8 {[%clk 0:01:53]}  h4 {[%clk 0:00:29]} 36. Rb7 {[%clk 0:01:47]}  Ke6 {[%clk 0:00:29]} 37. Kf3 {[%clk 0:01:40]}  h3 {[%clk 0:00:28]} 38. Rxc7 {[%clk 0:01:34]}  h2 {[%clk 0:00:21]} 39. Rh7 {[%clk 0:01:29]}  h1=Q+ {[%clk 0:00:20]} 0-1


[Site "https://www.chess.com"]

[Event "Titled Tuesday Blitz May 4 2021"]
[White "Noboa Silva, Kevin"]
[Black "Toncheva, Nadya"]
[WhiteFideId "3618471"]
[BlackFideId "2924056"]
[WhiteElo "2161"]
[BlackElo "1920"]
[Result "0-1"]
[Round "06"]
[TimeControl "180+1"]
[Date "2021.05.04"]
[WhiteClock "0:00:12"]
[BlackClock "0:00:04"]

1. e4 {[%clk 0:03:00]}  e5 {[%clk 0:02:57]} 2. Nf3 {[%clk 0:03:00]}  Nc6 {[%clk 0:02:57]} 3. d4 {[%clk 0:02:58]}  exd4 {[%clk 0:02:57]} 4. Nxd4 {[%clk 0:02:58]}  Nf6 {[%clk 0:02:56]} 5. Nxc6 {[%clk 0:02:58]}  bxc6 {[%clk 0:02:57]} 6. e5 {[%clk 0:02:58]}  Qe7 {[%clk 0:02:58]} 7. Qe2 {[%clk 0:02:58]}  Nd5 {[%clk 0:02:58]} 8. c4 {[%clk 0:02:59]}  Ba6 {[%clk 0:02:58]} 9. Nd2 {[%clk 0:02:58]}  g6 {[%clk 0:02:54]} 10. Ne4 {[%clk 0:02:57]}  Bg7 {[%clk 0:02:52]} 11. Bg5 {[%clk 0:02:56]}  Qb4+ {[%clk 0:02:49]} 12. Kd1 {[%clk 0:02:43]}  O-O {[%clk 0:02:15]} 13. Nf6+ {[%clk 0:02:40]}  Bxf6 {[%clk 0:02:12]} 14. exf6 {[%clk 0:02:29]}  Nxf6 {[%clk 0:02:10]} 15. Bxf6 {[%clk 0:02:18]}  Qd6+ {[%clk 0:02:08]} 16. Qd2 {[%clk 0:02:17]}  Qxf6 {[%clk 0:02:08]} 17. Bd3 {[%clk 0:02:16]}  Rab8 {[%clk 0:02:04]} 18. Rb1 {[%clk 0:02:11]}  d5 {[%clk 0:01:55]} 19. Kc2 {[%clk 0:01:26]}  Bxc4 {[%clk 0:01:46]} 20. Bxc4 {[%clk 0:01:26]}  dxc4 {[%clk 0:01:47]} 21. Rhd1 {[%clk 0:01:13]}  Rbd8 {[%clk 0:01:39]} 22. Qe2 {[%clk 0:01:07]}  Qf5+ {[%clk 0:01:36]} 23. Kc1 {[%clk 0:01:05]}  Rd3 {[%clk 0:01:31]} 24. Rxd3 {[%clk 0:01:04]}  cxd3 {[%clk 0:01:31]} 25. Qe3 {[%clk 0:01:01]}  Rd8 {[%clk 0:01:28]} 26. Kd1 {[%clk 0:00:57]}  d2 {[%clk 0:01:24]} 27. Ra1 {[%clk 0:00:51]}  Qh5+ {[%clk 0:01:22]} 28. f3 {[%clk 0:00:38]}  Qxh2 {[%clk 0:01:22]} 29. Kc2 {[%clk 0:00:38]}  d1=Q+ {[%clk 0:00:47]} 30. Rxd1 {[%clk 0:00:37]}  Qxg2+ {[%clk 0:00:47]} 31. Kc1 {[%clk 0:00:37]}  Rxd1+ {[%clk 0:00:46]} 32. Kxd1 {[%clk 0:00:37]}  Qxb2 {[%clk 0:00:46]} 33. Qxa7 {[%clk 0:00:33]}  Qb1+ {[%clk 0:00:37]} 34. Ke2 {[%clk 0:00:32]}  Qc2+ {[%clk 0:00:37]} 35. Kf1 {[%clk 0:00:28]}  Qd3+ {[%clk 0:00:35]} 36. Kg2 {[%clk 0:00:27]}  Qd6 {[%clk 0:00:32]} 37. a4 {[%clk 0:00:20]}  h5 {[%clk 0:00:32]} 38. Kh3 {[%clk 0:00:18]}  g5 {[%clk 0:00:31]} 39. Qb8+ {[%clk 0:00:15]}  Kg7 {[%clk 0:00:30]} 40. Qb2+ {[%clk 0:00:14]}  f6 {[%clk 0:00:26]} 41. Qg2 {[%clk 0:00:07]}  h4 {[%clk 0:00:25]} 42. a5 {[%clk 0:00:06]}  c5 {[%clk 0:00:20]} 43. Qg1 {[%clk 0:00:03]}  c4 {[%clk 0:00:17]} 44. Kg4 {[%clk 0:00:03]}  Qe6+ {[%clk 0:00:12]} 45. Kh5 {[%clk 0:00:01]}  c3 {[%clk 0:00:10]} 46. Qd1 {[%clk 0:00:01]}  Qf7+ {[%clk 0:00:09]} 47. Kg4 {[%clk 0:00:01]}  Kg6 {[%clk 0:00:05]} 48. Kh3 {[%clk 0:00:02]}  Qe6+ {[%clk 0:00:05]} 49. Kg2 {[%clk 0:00:03]}  h3+ {[%clk 0:00:05]} 50. Kf2 {[%clk 0:00:03]}  Qc4 {[%clk 0:00:03]} 51. Qc2+ {[%clk 0:00:03]}  Kh6 {[%clk 0:00:03]} 52. Kg3 {[%clk 0:00:04]}  Qf4+ {[%clk 0:00:02]} 53. Kxh3 {[%clk 0:00:04]}  Qd2 {[%clk 0:00:03]} 54. Qxd2 {[%clk 0:00:04]}  cxd2 {[%clk 0:00:04]} 55. a6 {[%clk 0:00:04]}  d1=Q {[%clk 0:00:04]} 56. a7 {[%clk 0:00:05]}  Qa4 {[%clk 0:00:04]} 57. Kh2 {[%clk 0:00:06]}  Qxa7 {[%clk 0:00:05]} 58. Kg3 {[%clk 0:00:07]}  Qe3 {[%clk 0:00:05]} 59. Kg4 {[%clk 0:00:08]}  Kg6 {[%clk 0:00:04]} 60. Kh3 {[%clk 0:00:08]}  Qxf3+ {[%clk 0:00:04]} 61. Kh2 {[%clk 0:00:09]}  Kf5 {[%clk 0:00:04]} 62. Kg1 {[%clk 0:00:10]}  Kf4 {[%clk 0:00:04]} 63. Kh2 {[%clk 0:00:11]}  Qg4 {[%clk 0:00:03]} 64. Kh1 {[%clk 0:00:11]}  Kf3 {[%clk 0:00:04]} 65. Kh2 {[%clk 0:00:12]}  Qg2# {[%clk 0:00:04]} 0-1


[Site "https://www.chess.com"]

[Event "Titled Tuesday Blitz May 4 2021"]
[White "Ognean, Mihnea-Ionut"]
[Black "Wagner, Dennis"]
[WhiteFideId "1232347"]
[BlackFideId "24650684"]
[WhiteElo "2012"]
[BlackElo "2355"]
[Result "1-0"]
[Round "06"]
[TimeControl "180+1"]
[Date "2021.05.04"]
[WhiteClock "0:00:21"]
[BlackClock "0:00:08"]

1. e4 {[%clk 0:03:00]}  e5 {[%clk 0:02:59]} 2. Nf3 {[%clk 0:03:00]}  Nc6 {[%clk 0:02:58]} 3. Bc4 {[%clk 0:03:00]}  Bc5 {[%clk 0:02:58]} 4. c3 {[%clk 0:02:59]}  Nf6 {[%clk 0:02:57]} 5. d3 {[%clk 0:03:00]}  O-O {[%clk 0:02:55]} 6. O-O {[%clk 0:03:00]}  d5 {[%clk 0:02:53]} 7. exd5 {[%clk 0:03:00]}  Nxd5 {[%clk 0:02:53]} 8. a4 {[%clk 0:02:48]}  a5 {[%clk 0:02:53]} 9. Re1 {[%clk 0:02:44]}  Bg4 {[%clk 0:02:52]} 10. Nbd2 {[%clk 0:02:41]}  Nb6 {[%clk 0:02:44]} 11. h3 {[%clk 0:02:29]}  Nxc4 {[%clk 0:02:32]} 12. hxg4 {[%clk 0:02:28]}  Nxd2 {[%clk 0:02:31]} 13. Qxd2 {[%clk 0:02:22]}  Re8 {[%clk 0:02:31]} 14. Qe2 {[%clk 0:02:18]}  Qd7 {[%clk 0:02:30]} 15. Ng5 {[%clk 0:02:03]}  h6 {[%clk 0:02:05]} 16. Ne4 {[%clk 0:02:02]}  Bf8 {[%clk 0:02:05]} 17. Bxh6 {[%clk 0:02:00]}  Rad8 {[%clk 0:02:01]} 18. Rad1 {[%clk 0:01:59]}  Ne7 {[%clk 0:01:55]} 19. Bg5 {[%clk 0:01:54]}  Qxa4 {[%clk 0:01:45]} 20. Qf3 {[%clk 0:01:47]}  Qc6 {[%clk 0:01:37]} 21. Re3 {[%clk 0:01:28]}  f6 {[%clk 0:01:28]} 22. Bxf6 {[%clk 0:01:18]}  gxf6 {[%clk 0:01:27]} 23. Nxf6+ {[%clk 0:01:19]}  Kf7 {[%clk 0:01:24]} 24. Ne4+ {[%clk 0:01:04]}  Kg7 {[%clk 0:01:12]} 25. g5 {[%clk 0:00:56]}  Nd5 {[%clk 0:00:05]} 26. Nf6 {[%clk 0:00:34]}  Nxf6 {[%clk 0:00:05]} 27. gxf6+ {[%clk 0:00:30]}  Qxf6 {[%clk 0:00:06]} 28. Qh3 {[%clk 0:00:29]}  Bc5 {[%clk 0:00:06]} 29. Rg3+ {[%clk 0:00:29]}  Kf7 {[%clk 0:00:06]} 30. d4 {[%clk 0:00:29]}  exd4 {[%clk 0:00:05]} 31. Qh7+ {[%clk 0:00:28]}  Ke6 {[%clk 0:00:05]} 32. Rg6 {[%clk 0:00:25]}  dxc3 {[%clk 0:00:04]} 33. Rxf6+ {[%clk 0:00:24]}  Kxf6 {[%clk 0:00:04]} 34. Qh6+ {[%clk 0:00:23]}  Kf7 {[%clk 0:00:04]} 35. Qh5+ {[%clk 0:00:23]}  Kf6 {[%clk 0:00:04]} 36. Rxd8 {[%clk 0:00:21]}  Rxd8 {[%clk 0:00:05]} 37. Qxc5 {[%clk 0:00:20]}  cxb2 {[%clk 0:00:06]} 38. Qc3+ {[%clk 0:00:20]}  Kf7 {[%clk 0:00:06]} 39. Qxb2 {[%clk 0:00:20]}  b6 {[%clk 0:00:06]} 40. g4 {[%clk 0:00:20]}  Rd6 {[%clk 0:00:06]} 41. Kg2 {[%clk 0:00:20]}  a4 {[%clk 0:00:05]} 42. Kg3 {[%clk 0:00:20]}  c5 {[%clk 0:00:05]} 43. f4 {[%clk 0:00:20]}  Rd3+ {[%clk 0:00:04]} 44. Kh4 {[%clk 0:00:21]}  Rb3 {[%clk 0:00:05]} 45. Qe5 {[%clk 0:00:20]}  a3 {[%clk 0:00:05]} 46. Qd5+ {[%clk 0:00:21]}  Kg7 {[%clk 0:00:05]} 47. Qxb3 {[%clk 0:00:21]}  a2 {[%clk 0:00:06]} 48. Qxa2 {[%clk 0:00:21]}  c4 {[%clk 0:00:07]} 49. Qxc4 {[%clk 0:00:22]}  b5 {[%clk 0:00:08]} 50. Qc7+ {[%clk 0:00:22]}  Kh6 {[%clk 0:00:08]} 51. f5 {[%clk 0:00:21]} 1-0


[Site "https://www.chess.com"]